fUST/lending_fUST_20250520
["ID","MTS","AMOUNT","RATE_DAILY","PERIOD"]
[361658190,1747672235281,-575.18482428,0.00019178,2]
[361658191,1747672235290,-2652.49,0.00019178,2]
[361658192,1747672235300,-430.0,0.00019178,2]
[361658193,1747672235310,-401.9682729,0.00019178,2]
[361658194,1747672235319,-430.0,0.00019178,2]
[361658195,1747672235329,-430.0,0.00019178,2]
[361658196,1747672235339,-545.83,0.00019178,2]
[361658197,1747672235348,-430.0,0.00019178,2]
[361658198,1747672235358,-430.0,0.00019178,2]
[361658199,1747672235367,-586.27,0.00019178,2]
[361658200,1747672235377,-430.0,0.00019178,2]
[361658201,1747672235386,-430.0,0.00019178,2]
[361658202,1747672235395,-430.0,0.00019178,2]
[361658203,1747672235405,-400.43357852,0.00019178,2]
[361658204,1747672235414,-430.0,0.00019178,2]
[361658205,1747672235423,-430.0,0.00019178,2]
[361658206,1747672235432,-534.37,0.00019178,2]
[361658207,1747672235442,-430.0,0.00019178,2]
[361658208,1747672235451,-430.0,0.00019178,2]
[361658209,1747672235460,-430.0,0.00019178,2]
[361658210,1747672235469,-430.0,0.00019178,2]
[361658211,1747672235479,-4932.48,0.00019178,2]
[361658212,1747672235488,-430.0,0.00019178,2]
[361658213,1747672235497,-430.0,0.00019178,2]
[361658214,1747672235507,-430.0,0.00019178,2]
[361658215,1747672235516,-1134.35,0.00019178,2]
[361658216,1747672235526,-430.0,0.00019178,2]
[361658217,1747672235536,-5094.22,0.00019178,2]
[361658218,1747672235545,-432.72055257,0.00019178,2]
[361658219,1747672235556,-430.0,0.00019178,2]
[361658220,1747672235565,-374.09258345,0.00019178,2]
[361658221,1747672235575,-430.0,0.00019178,2]
[361658222,1747672235585,-402.12188739,0.00019178,2]
[361658223,1747672235595,-402.31935392,0.00019178,2]
[361658224,1747672235605,-430.0,0.00019178,2]
[361658225,1747672235615,-5332.24,0.00019178,2]
[361658226,1747672235624,-430.0,0.00019178,2]
[361658227,1747672235634,-401.50733618,0.00019178,2]
[361658228,1747672235643,-450.0,0.00019178,2]
[361658229,1747672235653,-430.0,0.00019178,2]
[361658230,1747672235662,-450.0,0.00019178,2]
[361658231,1747672235672,-1114.0,0.00019178,2]
[361658232,1747672235682,-430.0,0.00019178,2]
[361658233,1747672235692,-430.0,0.00019178,2]
[361658234,1747672235702,-430.0,0.00019178,2]
[361658235,1747672235713,-430.0,0.00019178,2]
[361658236,1747672235726,-430.0,0.00019178,2]
[361658237,1747672235737,-7511.25,0.00019178,2]
[361658238,1747672235747,-381.41467323,0.00019178,2]
[361658239,1747672235756,-401.31931123,0.00019178,2]
[361658240,1747672235768,-400.0,0.00019178,2]
[361658241,1747672235778,-430.0,0.00019178,2]
[361658242,1747672235787,-430.0,0.00019178,2]
[361658243,1747672235798,-400.0,0.00019178,2]
[361658244,1747672235808,-430.0,0.00019178,2]
[361658245,1747672235818,-210.08641937,0.00019178,2]
[361658268,1747672238355,-155.4925737,0.00019178,2]
[361658270,1747672238365,-331.94647272,0.00019178,2]
[361658323,1747672245284,-2230.7633,0.00018986,2]
[361658334,1747672246583,-2769.2367,0.00018986,2]
[361658335,1747672246593,-98.05352728,0.00019178,2]
[361658336,1747672246603,-1142.67,0.00019178,2]
[361658337,1747672246612,-430.0,0.00019178,2]
[361658338,1747672246623,-1588.55,0.00019178,2]
[361658339,1747672246632,-430.0,0.00019178,2]
[361658340,1747672246642,-516.34561827,0.00019178,2]
[361658341,1747672246652,-430.0,0.00019178,2]
[361658342,1747672246661,-430.0,0.00019178,2]
[361658343,1747672246671,-430.0,0.00019178,2]
[361658344,1747672246680,-430.0,0.00019178,2]
[361658345,1747672246690,-430.0,0.00019178,2]
[361658346,1747672246700,-1824.79,0.00019178,2]
[361658347,1747672246709,-430.0,0.00019178,2]
[361658348,1747672246720,-430.0,0.00019178,2]
[361658349,1747672246731,-913.37,0.00019178,2]
[361658350,1747672246740,-430.0,0.00019178,2]
[361658351,1747672246750,-430.0,0.00019178,2]
[361658352,1747672246759,-575.56333471,0.00019178,2]
[361658353,1747672246770,-1898.38,0.00019178,2]
[361658354,1747672246780,-430.0,0.00019178,2]
[361658355,1747672246789,-1812.24,0.00019178,2]
[361658356,1747672246800,-370.0,0.00019178,2]
[361658357,1747672246810,-430.0,0.00019178,2]
[361658358,1747672246819,-430.0,0.00019178,2]
[361658359,1747672246829,-450.0,0.00019178,2]
[361658360,1747672246838,-370.0,0.00019178,2]
[361658361,1747672246848,-430.0,0.00019178,2]
[361658362,1747672246857,-305.77616446,0.00019178,2]
[361658363,1747672246867,-701.83,0.00019178,2]
[361658364,1747672246877,-370.0,0.00019178,2]
[361658365,1747672246887,-2289.37,0.00019178,2]
[361658366,1747672246896,-370.0,0.00019178,2]
[361658367,1747672246905,-388.43147902,0.00019178,2]
[361658368,1747672246915,-420.0,0.00019178,2]
[361658369,1747672246924,-275.23320776,0.00019178,2]
[361658370,1747672246938,-154.76679224,0.00019178,2]
[361658371,1747672246948,-430.0,0.00019178,2]
[361658372,1747672246958,-101.81422976,0.00019178,2]
[361658373,1747672246971,-1394.39577024,0.00019178,2]
[361658374,1747672246981,-445.16,0.00019178,2]
[361658375,1747672246991,-430.0,0.00019178,2]
[361658376,1747672247003,-430.0,0.00019178,2]
[361658377,1747672247013,-400.80279224,0.00019178,2]
[361658378,1747672247024,-466.61,0.00019178,2]
[361658379,1747672247035,-328.32649679,0.00019178,2]
[361658380,1747672247046,-430.0,0.00019178,2]
[361658381,1747672247056,-430.0,0.00019178,2]
[361658382,1747672247066,-430.0,0.00019178,2]
[361658383,1747672247076,-676.24,0.00019178,2]
[361658384,1747672247085,-430.0,0.00019178,2]
[361658385,1747672247096,-430.0,0.00019178,2]
[361658386,1747672247106,-430.0,0.00019178,2]
[361658387,1747672247116,-4152.49,0.00019178,2]
[361658388,1747672247126,-170.0,0.00019178,2]
[361658389,1747672247136,-400.0,0.00019178,2]
[361658390,1747672247146,-1516.21,0.00019178,2]
[361658391,1747672247156,-420.0,0.00019178,2]
[361658392,1747672247165,-430.0,0.00019178,2]
[361658393,1747672247174,-371.29252679,0.00019178,2]
[361658394,1747672247185,-934.18,0.00019178,2]
[361658395,1747672247195,-430.0,0.00019178,2]
[361658396,1747672247206,-430.0,0.00019178,2]
[361658397,1747672247218,-430.0,0.00019178,2]
[361658398,1747672247229,-4184.03,0.00019178,2]
[361658399,1747672247239,-430.0,0.00019178,2]
[361658400,1747672247249,-370.0,0.00019178,2]
[361658401,1747672247259,-430.0,0.00019178,2]
[361658402,1747672247268,-4979.08,0.00019178,2]
[361658403,1747672247279,-352.10251689,0.00019178,2]
[361658404,1747672247290,-430.0,0.00019178,2]
[361658405,1747672247299,-430.0,0.00019178,2]
[361658406,1747672247310,-430.0,0.00019178,2]
[361658407,1747672247319,-1038.65,0.00019178,2]
[361658408,1747672247329,-430.0,0.00019178,2]
[361658409,1747672247338,-945.63,0.00019178,2]
[361658410,1747672247348,-430.0,0.00019178,2]
[361658411,1747672247360,-430.0,0.00019178,2]
[361658412,1747672247371,-430.0,0.00019178,2]
[361658413,1747672247383,-430.0,0.00019178,2]
[361658414,1747672247393,-430.0,0.00019178,2]
[361658415,1747672247402,-430.0,0.00019178,2]
[361658416,1747672247411,-430.0,0.00019178,2]
[361658417,1747672247422,-666.36,0.00019178,2]
[361658418,1747672247431,-430.0,0.00019178,2]
[361658419,1747672247442,-430.0,0.00019178,2]
[361658420,1747672247453,-430.0,0.00019178,2]
[361658421,1747672247462,-430.0,0.00019178,2]
[361658422,1747672247472,-430.0,0.00019178,2]
[361658423,1747672247481,-430.0,0.00019178,2]
[361658424,1747672247490,-430.0,0.00019178,2]
[361658425,1747672247500,-430.0,0.00019178,2]
[361658426,1747672247509,-430.0,0.00019178,2]
[361658427,1747672247518,-430.0,0.00019178,2]
[361658428,1747672247527,-430.0,0.00019178,2]
[361658429,1747672247537,-430.0,0.00019178,2]
[361658430,1747672247546,-430.0,0.00019178,2]
[361658431,1747672247555,-430.0,0.00019178,2]
[361658432,1747672247678,-370.0,0.00019178,2]
[361658433,1747672247688,-371.9006494,0.00019178,2]
[361658434,1747672247700,-1272.1,0.00019178,2]
[361658435,1747672247711,-430.0,0.00019178,2]
[361658436,1747672247723,-430.0,0.00019178,2]
[361658437,1747672247734,-474.67971977,0.00019178,2]
[361658438,1747672247744,-3017.78,0.00019178,2]
[361658439,1747672247756,-430.0,0.00019178,2]
[361658440,1747672247767,-432.00262476,0.00019178,2]
[361658441,1747672247777,-430.0,0.00019178,2]
[361658442,1747672247788,-612.27,0.00019178,2]
[361658443,1747672247801,-430.0,0.00019178,2]
[361658444,1747672247813,-769.28,0.00019178,2]
[361658445,1747672247823,-430.0,0.00019178,2]
[361658446,1747672247832,-349.64036365,0.00019178,2]
[361658447,1747672247841,-1840.93,0.00019178,2]
[361658448,1747672247851,-935.74,0.00019178,2]
[361658449,1747672247861,-1623.13,0.00019178,2]
[361658450,1747672247871,-549.98420226,0.00019178,2]
[361658451,1747672247881,-2625.05,0.00019178,2]
[361658452,1747672247891,-375.74026328,0.00019178,2]
[361658453,1747672247901,-430.0,0.00019178,2]
[361658454,1747672247911,-590.21,0.00019178,2]
[361658455,1747672247920,-306.40948615,0.00019178,2]
[361658456,1747672247930,-500.0,0.00019178,2]
[361658457,1747672247940,-430.0,0.00019178,2]
[361658458,1747672247949,-3026.16,0.00019178,2]
[361658459,1747672247958,-228.38035437,0.00019178,2]
[361658460,1747672247967,-430.0,0.00019178,2]
[361658461,1747672247978,-430.0,0.00019178,2]
[361658462,1747672247987,-964.53,0.00019178,2]
[361658463,1747672247996,-430.0,0.00019178,2]
[361658464,1747672248005,-430.0,0.00019178,2]
[361658465,1747672248014,-430.0,0.00019178,2]
[361658466,1747672248024,-497.89,0.00019178,2]
[361658467,1747672248033,-430.0,0.00019178,2]
[361658468,1747672248043,-587.87,0.00019178,2]
[361658469,1747672248052,-430.0,0.00019178,2]
[361658470,1747672248062,-612.99,0.00019178,2]
[361658471,1747672248072,-430.0,0.00019178,2]
[361658472,1747672248081,-430.0,0.00019178,2]
[361658473,1747672248091,-370.0,0.00019178,2]
[361658474,1747672248102,-1117.31,0.00019178,2]
[361658475,1747672248111,-430.0,0.00019178,2]
[361658476,1747672248123,-430.0,0.00019178,2]
[361658477,1747672248132,-430.0,0.00019178,2]
[361658478,1747672248142,-2220.83,0.00019178,2]
[361658479,1747672248152,-475.75464349,0.00019178,2]
[361658480,1747672248162,-430.0,0.00019178,2]
[361658481,1747672248173,-729.16,0.00019178,2]
[361658482,1747672248182,-430.0,0.00019178,2]
[361658483,1747672248193,-375.51846936,0.00019178,2]
[361658484,1747672248203,-430.0,0.00019178,2]
[361658485,1747672248213,-459.91,0.00019178,2]
[361658486,1747672248223,-430.0,0.00019178,2]
[361658487,1747672248233,-430.0,0.00019178,2]
[361658488,1747672248244,-430.0,0.00019178,2]
[361658489,1747672248254,-1467.17,0.00019178,2]
[361658490,1747672248264,-430.0,0.00019178,2]
[361658491,1747672248274,-745.42,0.00019178,2]
[361658492,1747672248284,-430.0,0.00019178,2]
[361658493,1747672248296,-486.66,0.00019178,2]
[361658494,1747672248306,-430.0,0.00019178,2]
[361658495,1747672248316,-430.0,0.00019178,2]
[361658496,1747672248326,-430.0,0.00019178,2]
[361658497,1747672248336,-513.52886524,0.00019178,2]
[361658498,1747672248347,-430.0,0.00019178,2]
[361658499,1747672248357,-430.0,0.00019178,2]
[361658500,1747672248370,-889.22,0.00019178,2]
[361658501,1747672248380,-610.77,0.00019178,2]
[361658502,1747672248393,-1379.44,0.00019178,2]
[361658503,1747672248404,-430.0,0.00019178,2]
[361658504,1747672248414,-1171.17,0.00019178,2]
[361658505,1747672248424,-2028.19,0.00019178,2]
[361658506,1747672248435,-430.0,0.00019178,2]
[361658507,1747672248446,-430.0,0.00019178,2]
[361658508,1747672248455,-430.0,0.00019178,2]
[361658509,1747672248465,-430.0,0.00019178,2]
[361658510,1747672248476,-430.0,0.00019178,2]
[361658511,1747672248485,-430.0,0.00019178,2]
[361658512,1747672248495,-403.26228707,0.00019178,2]
[361658513,1747672248505,-430.0,0.00019178,2]
[361658514,1747672248514,-204.06088182,0.00019178,2]
[361658515,1747672248524,-370.0,0.00019178,2]
[361658516,1747672248535,-1398.48,0.00019178,2]
[361658517,1747672248545,-373.27852435,0.00019178,2]
[361658518,1747672248555,-1152.21,0.00019178,2]
[361658519,1747672248564,-430.0,0.00019178,2]
[361658520,1747672248573,-706.08,0.00019178,2]
[361658521,1747672248583,-722.91,0.00019178,2]
[361658522,1747672248592,-430.0,0.00019178,2]
[361658523,1747672248601,-430.0,0.00019178,2]
[361658524,1747672248611,-849.52,0.00019178,2]
[361658525,1747672248623,-1732.34,0.00019178,2]
[361658526,1747672248632,-430.0,0.00019178,2]
[361658527,1747672248641,-430.0,0.00019178,2]
[361658528,1747672248651,-430.0,0.00019178,2]
[361658529,1747672248660,-375.89612985,0.00019178,2]
[361658530,1747672248670,-553.83,0.00019178,2]
[361658531,1747672248679,-889.74,0.00019178,2]
[361658532,1747672248688,-430.0,0.00019178,2]
[361658533,1747672248698,-430.0,0.00019178,2]
[361658534,1747672248707,-430.0,0.00019178,2]
[361658535,1747672248717,-430.0,0.00019178,2]
[361658536,1747672248731,-430.0,0.00019178,2]
[361658537,1747672248740,-430.0,0.00019178,2]
[361658538,1747672248750,-1285.46,0.00019178,2]
[361658539,1747672248760,-4224.69,0.00019178,2]
[361658540,1747672248770,-605.93,0.00019178,2]
[361658541,1747672248781,-430.0,0.00019178,2]
[361658542,1747672248791,-760.03,0.00019178,2]
[361658543,1747672248802,-430.0,0.00019178,2]
[361658544,1747672248813,-267.014722,0.00019178,2]
[361658545,1747672248822,-1030.69069743,0.00019215,2]
[361658546,1747672248833,-613.484986,0.00019304,2]
[361658547,1747672248842,-1389.4213708,0.00019304,2]
[361658548,1747672248852,-986.33,0.00019315,2]
[361658549,1747672248862,-430.0,0.00019315,2]
[361658550,1747672248873,-1030.69069743,0.00019352,2]
[361658551,1747672248883,-818.77556515,0.00019452,2]
[361658552,1747672248892,-986.33,0.00019452,2]
[361658553,1747672248902,-430.0,0.00019452,2]
[361658554,1747672248911,-430.0,0.00019452,2]
[361658555,1747672248921,-430.0,0.00019452,2]
[361658556,1747672248930,-430.0,0.00019452,2]
[361658557,1747672248940,-809.37,0.00019452,2]
[361658558,1747672248950,-904.62,0.00019452,2]
[361658559,1747672248960,-430.0,0.00019452,2]
[361658560,1747672248970,-430.0,0.00019452,2]
[361658561,1747672248980,-405.15684946,0.00019452,2]
[361658562,1747672248990,-558.2,0.00019452,2]
[361658563,1747672248999,-430.0,0.00019452,2]
[361658564,1747672249009,-430.0,0.00019452,2]
[361658565,1747672249019,-430.0,0.00019452,2]
[361658566,1747672249029,-340.58830062,0.00019452,2]
[361658567,1747672249038,-430.0,0.00019452,2]
[361658568,1747672249047,-430.0,0.00019452,2]
[361658569,1747672249057,-430.0,0.00019452,2]
[361658570,1747672249067,-360.0,0.00019452,2]
[361658571,1747672249078,-430.0,0.00019452,2]
[361658572,1747672249087,-430.0,0.00019452,2]
[361658573,1747672249097,-430.0,0.00019452,2]
[361658574,1747672249107,-430.0,0.00019452,2]
[361658575,1747672249119,-470.91676991,0.00019452,2]
[361658576,1747672249132,-430.0,0.00019452,2]
[361658577,1747672249142,-430.0,0.00019452,2]
[361658578,1747672249152,-430.0,0.00019452,2]
[361658579,1747672249161,-430.0,0.00019452,2]
[361658580,1747672249171,-392.40900223,0.00019452,2]
[361658581,1747672249183,-465.45,0.00019452,2]
[361658582,1747672249193,-430.0,0.00019452,2]
[361658583,1747672249204,-742.96,0.00019452,2]
[361658584,1747672249215,-430.0,0.00019452,2]
[361658585,1747672249224,-430.0,0.00019452,2]
[361658586,1747672249234,-223.50804559,0.00019452,2]
[361658587,1747672249245,-460.0,0.00019452,2]
[361658588,1747672249255,-549.93,0.00019452,2]
[361658589,1747672249266,-430.0,0.00019452,2]
[361658590,1747672249275,-430.0,0.00019452,2]
[361658591,1747672249286,-430.0,0.00019452,2]
[361658592,1747672249296,-430.0,0.00019452,2]
[361658593,1747672249306,-457.78,0.00019452,2]
[361658594,1747672249316,-430.0,0.00019452,2]
[361658595,1747672249326,-430.0,0.00019452,2]
[361658596,1747672249336,-430.0,0.00019452,2]
[361658597,1747672249345,-430.0,0.00019452,2]
[361658598,1747672249355,-430.0,0.00019452,2]
[361658599,1747672249365,-515.63674196,0.00019452,2]
[361658600,1747672249377,-430.0,0.00019452,2]
[361658601,1747672249387,-675.37,0.00019452,2]
[361658602,1747672249397,-430.0,0.00019452,2]
[361658603,1747672249406,-430.0,0.00019452,2]
[361658604,1747672249416,-837.21,0.00019452,2]
[361658605,1747672249426,-430.0,0.00019452,2]
[361658606,1747672249435,-430.0,0.00019452,2]
[361658607,1747672249445,-397.88877373,0.00019452,2]
[361658608,1747672249455,-430.0,0.00019452,2]
[361658609,1747672249465,-277.25912014,0.00019452,2]
[361658610,1747672249474,-430.0,0.00019452,2]
[361658611,1747672249484,-575.0787676,0.00019452,2]
[361658612,1747672249494,-430.0,0.00019452,2]
[361658613,1747672249504,-430.0,0.00019452,2]
[361658614,1747672249514,-237.74618375,0.00019452,2]
[361658615,1747672249523,-430.0,0.00019452,2]
[361658616,1747672249534,-474.53,0.00019452,2]
[361658617,1747672249638,-197.60860586,0.00019452,2]
[361658618,1747672249648,-430.0,0.00019452,2]
[361658619,1747672249658,-458.74988753,0.00019452,2]
[361658620,1747672249667,-303.67603581,0.00019452,2]
[361658621,1747672249678,-603.21,0.00019452,2]
[361658622,1747672249688,-390.0,0.00019452,2]
[361658623,1747672249697,-433.03417159,0.00019452,2]
[361658624,1747672249708,-430.0,0.00019452,2]
[361658625,1747672249718,-390.0,0.00019452,2]
[361658626,1747672249731,-430.0,0.00019452,2]
[361658627,1747672249740,-394.55460282,0.00019452,2]
[361658628,1747672249749,-430.0,0.00019452,2]
[361658629,1747672249760,-497.68646399,0.00019452,2]
[361658630,1747672249771,-398.49200306,0.00019452,2]
[361658631,1747672249781,-430.0,0.00019452,2]
[361658632,1747672249792,-430.0,0.00019452,2]
[361658633,1747672249802,-338.4197386,0.00019452,2]
[361658641,1747672572930,300.0,0.00027,120]
[361658663,1747673149151,700.0,0.00027397,120]
[361658664,1747673149434,700.0,0.00027397,120]
[361658665,1747673149750,191.14835276,0.00027397,120]
[361658672,1747673432650,-5000.0,0.00013426,2]
[361658673,1747673432660,-375.93042,0.00013699,2]
[361658674,1747673432670,-547.0,0.00014899,2]
[361658675,1747673432682,-160.0,0.00015,2]
[361658677,1747673432693,-300.0,0.00015278,2]
[361658678,1747673432703,-200.0,0.00015751,2]
[361658679,1747673432713,-420.0,0.00016717,2]
[361658680,1747673432721,-14867.1489409,0.00016875,2]
[361658681,1747673432731,-306.742493,0.00017483,2]
[361658682,1747673432740,-285.62580598,0.00017554,2]
[361658683,1747673432749,-500.0,0.00017554,2]
[361658684,1747673432760,-457.46185666,0.00017554,2]
[361658685,1747673432768,-500.0,0.00017554,2]
[361658686,1747673432777,-500.0,0.00017554,2]
[361658687,1747673432786,-500.0,0.00017554,2]
[361658688,1747673432797,-486.57132896,0.00017554,2]
[361658689,1747673432806,-500.0,0.00017554,2]
[361658690,1747673432816,-500.0,0.00017554,2]
[361658691,1747673432826,-500.0,0.00017554,2]
[361658692,1747673432835,-500.0,0.00017554,2]
[361658693,1747673432845,-500.0,0.00017554,2]
[361658694,1747673432855,-500.0,0.00017554,2]
[361658696,1747673432864,-500.0,0.00017554,2]
[361658697,1747673432874,-500.0,0.00017554,2]
[361658698,1747673432884,-500.0,0.00017554,2]
[361658699,1747673432894,-500.0,0.00017554,2]
[361658700,1747673432904,-500.0,0.00017554,2]
[361658701,1747673432913,-500.0,0.00017554,2]
[361658702,1747673432923,-500.0,0.00017554,2]
[361658703,1747673432934,-500.0,0.00017554,2]
[361658704,1747673432944,-500.0,0.00017554,2]
[361658705,1747673432954,-500.0,0.00017554,2]
[361658706,1747673432963,-500.0,0.00017554,2]
[361658707,1747673432973,-500.0,0.00017554,2]
[361658708,1747673432983,-500.0,0.00017554,2]
[361658709,1747673432993,-500.0,0.00017554,2]
[361658710,1747673433002,-500.0,0.00017554,2]
[361658711,1747673433011,-556.34449315,0.00017554,2]
[361658712,1747673433021,-421.49434073,0.00017554,2]
[361658713,1747673433031,-702.82156519,0.00017789,2]
[361658714,1747673433041,-24900.0,0.00017997,2]
[361658715,1747673433051,-1700.000001,0.00018,2]
[361658717,1747673433061,-587.0,0.0001829,2]
[361658719,1747673433070,-2000.0,0.000185,2]
[361658721,1747673433080,-204.52066877,0.00018602,2]
[361658723,1747673433090,-1254.743,0.0001863,2]
[361658725,1747673433105,-2065.0626335,0.00019,2]
[361658727,1747673433115,-6333.51853991,0.00019078,2]
[361658729,1747673433125,-500.0,0.00019173,2]
[361658730,1747673433135,-160.0,0.00019175,2]
[361658731,1747673433145,-9200.01053579,0.00019177,2]
[361658732,1747673433155,-998.68447496,0.00019178,3]
[361658733,1747673433164,-5550.76227071,0.00019178,3]
[361658734,1747673433175,-212.35735062,0.00019178,3]
[361658735,1747673433187,-314.45853212,0.00019178,3]
[361658736,1747673433197,-30111.18273688,0.00019178,3]
[361658738,1747673433207,-27982.65761824,0.00019178,2]
[361658741,1747673433217,-430.0,0.00019178,2]
[361658742,1747673433228,-430.0,0.00019178,2]
[361658743,1747673433238,-430.0,0.00019178,2]
[361658744,1747673433248,-430.0,0.00019178,2]
[361658745,1747673433258,-430.0,0.00019178,2]
[361658746,1747673433268,-430.0,0.00019178,2]
[361658747,1747673433277,-407.11116435,0.00019178,2]
[361658749,1747673433286,-430.0,0.00019178,2]
[361658751,1747673433296,-430.0,0.00019178,2]
[361658753,1747673433305,-514.58181182,0.00019178,2]
[361658755,1747673433314,-430.0,0.00019178,2]
[361658757,1747673433324,-300.0,0.00019178,2]
[361658759,1747673433334,-430.0,0.00019178,2]
[361658761,1747673433344,-430.0,0.00019178,2]
[361658763,1747673433353,-430.0,0.00019178,2]
[361658765,1747673433363,-430.0,0.00019178,2]
[361658767,1747673433372,-497.42200874,0.00019178,2]
[361658769,1747673433383,-430.0,0.00019178,2]
[361658771,1747673433393,-430.0,0.00019178,2]
[361658773,1747673433403,-430.0,0.00019178,2]
[361658775,1747673433413,-307.89179715,0.00019178,2]
[361658777,1747673433423,-430.0,0.00019178,2]
[361658779,1747673433434,-430.0,0.00019178,2]
[361658781,1747673433444,-430.0,0.00019178,2]
[361658783,1747673433454,-430.0,0.00019178,2]
[361658785,1747673433465,-430.0,0.00019178,2]
[361658787,1747673433476,-521.71652308,0.00019178,2]
[361658789,1747673433486,-503.61767748,0.00019178,2]
[361658791,1747673433496,-690.03,0.00019178,2]
[361658793,1747673433506,-430.0,0.00019178,2]
[361658795,1747673433516,-430.0,0.00019178,2]
[361658797,1747673433526,-430.0,0.00019178,2]
[361658799,1747673433535,-503.07908642,0.00019178,2]
[361658801,1747673433546,-430.0,0.00019178,2]
[361658804,1747673433556,-430.0,0.00019178,2]
[361658806,1747673433567,-413.47130291,0.00019178,2]
[361658808,1747673433577,-430.0,0.00019178,2]
[361658810,1747673433586,-430.0,0.00019178,2]
[361658812,1747673433596,-430.0,0.00019178,2]
[361658814,1747673433605,-500.0,0.00019178,2]
[361658816,1747673433615,-430.0,0.00019178,2]
[361658818,1747673433625,-430.0,0.00019178,2]
[361658820,1747673433635,-430.0,0.00019178,2]
[361658822,1747673433644,-430.0,0.00019178,2]
[361658824,1747673433761,-430.0,0.00019178,2]
[361658825,1747673433771,-430.0,0.00019178,2]
[361658826,1747673433782,-430.0,0.00019178,2]
[361658827,1747673433792,-450.0,0.00019178,2]
[361658828,1747673433802,-430.0,0.00019178,2]
[361658829,1747673433812,-500.0,0.00019178,2]
[361658830,1747673433822,-430.0,0.00019178,2]
[361658831,1747673433832,-400.0,0.00019178,2]
[361658832,1747673433842,-430.0,0.00019178,2]
[361658833,1747673433851,-430.0,0.00019178,2]
[361658834,1747673433861,-430.0,0.00019178,2]
[361658835,1747673433871,-430.0,0.00019178,2]
[361658836,1747673433881,-430.0,0.00019178,2]
[361658837,1747673433891,-732.1,0.00019178,2]
[361658838,1747673433901,-401.10725529,0.00019178,2]
[361658839,1747673433911,-449.5195601,0.00019178,2]
[361658840,1747673433921,-430.0,0.00019178,2]
[361658841,1747673433931,-430.0,0.00019178,2]
[361658842,1747673433941,-430.0,0.00019178,2]
[361658843,1747673433951,-866.91,0.00019178,2]
[361658844,1747673433961,-430.0,0.00019178,2]
[361658845,1747673433971,-215.38757818,0.00019178,2]
[361658846,1747673433980,-430.0,0.00019178,2]
[361658847,1747673433989,-430.0,0.00019178,2]
[361658848,1747673433998,-430.0,0.00019178,2]
[361658849,1747673434008,-430.0,0.00019178,2]
[361658850,1747673434018,-430.0,0.00019178,2]
[361658851,1747673434030,-430.0,0.00019178,2]
[361658852,1747673434040,-318.00661586,0.00019178,2]
[361658853,1747673434050,-430.0,0.00019178,2]
[361658854,1747673434060,-430.0,0.00019178,2]
[361658855,1747673434070,-430.0,0.00019178,2]
[361658856,1747673434079,-430.0,0.00019178,2]
[361658857,1747673434089,-457.03698808,0.00019178,2]
[361658858,1747673434100,-430.0,0.00019178,2]
[361658859,1747673434114,-430.0,0.00019178,2]